bitfinex-derivatives/quotes_SOLF0:USTF0_20250709
["timestamp","ask_amount","ask_price","bid_price","bid_amount"]
[1752073408864,12.0224168,154.3,154.25,4.72928831]
[1752073409165,14.87826174,154.29,154.26,6.4815]
[1752073409366,6.4806,154.29,154.26,11.21078831]
[1752073409566,18.5030168,154.29,154.26,11.21078831]
[1752073410276,12.0224168,154.29,154.27,6.4812]
[1752073410462,12.0224168,154.29,154.26,4.72928831]
[1752073410862,2.1324,154.33,154.28,4.72928831]
[1752073411067,8.39731853,154.32,154.28,4.72928831]
[1752073411267,20.6338168,154.33,154.3,11.20898831]
[1752073411462,12.0224168,154.33,154.3,4.72928831]
[1752073412063,12.0224168,154.33,154.3,11.20908831]
[1752073412668,12.0224168,154.33,154.3,4.72928831]
[1752073413862,2.2793,154.35,154.32,4.72928831]
[1752073414069,8.42880805,154.34,154.32,4.72928831]
[1752073414261,14.3017168,154.35,154.24,5.72928831]
[1752073414467,8.43692133,154.34,154.32,11.20838831]
[1752073414661,20.7799168,154.35,154.32,11.20838831]
[1752073414870,8.43278979,154.34,154.32,11.20838831]
[1752073415170,6.4784,154.34,154.32,4.72928831]
[1752073415376,18.5008168,154.34,154.31,4.72928831]
[1752073415669,12.0224168,154.34,154.31,4.72928831]
[1752073416061,11.10146713,154.38,154.31,4.72928831]
[1752073416264,6.4782,154.35,154.32,4.72928831]
[1752073416767,18.5006168,154.35,154.32,4.72928831]
[1752073416962,18.5006168,154.35,154.24,5.72928831]
[1752073416963,12.0224168,154.35,154.24,5.72928831]
[1752073417167,12.0224168,154.35,154.31,4.72928831]
[1752073417572,6.4784,154.34,154.31,4.72928831]
[1752073417972,11.15624775,154.38,154.31,4.72928831]
[1752073418167,12.44282019,154.37,154.24,5.72928831]
[1752073418368,8.4273836,154.36,154.3,4.72928831]
[1752073418572,8.4273836,154.35,154.3,4.72928831]
[1752073418774,8.4273836,154.34,154.3,4.72928831]
[1752073418978,6.4791,154.33,154.3,4.72928831]
[1752073419172,6.4791,154.33,154.3,6.4799]
[1752073419372,18.5015168,154.33,154.3,6.4799]
[1752073419877,12.0224168,154.33,154.29,4.72928831]
[1752073420472,12.0224168,154.33,154.31,4.72928831]
[1752073420673,2.1387,154.38,154.31,4.72928831]
[1752073420871,12.49241699,154.37,154.31,4.72928831]
[1752073421072,6.4786,154.34,154.31,6.4794]
[1752073421470,18.5010168,154.34,154.31,6.4794]
[1752073421776,12.0224168,154.34,154.3,4.72928831]
[1752073422074,6.4789,154.33,154.3,11.20908831]
[1752073422577,6.86798831,154.38,154.31,6.4794]
[1752073422777,12.48837748,154.37,154.31,6.4794]
[1752073422974,8.44729306,154.36,154.31,6.4794]
[1752073423175,8.44729306,154.35,154.31,6.4794]
[1752073423375,12.0224168,154.37,154.31,6.4794]
[1752073423576,8.45495717,154.36,154.32,6.479]
[1752073423876,8.45495717,154.35,154.32,6.479]
[1752073424076,6.4783,154.35,154.32,6.479]
[1752073424277,18.5007168,154.35,154.32,6.479]
[1752073424576,12.0224168,154.35,154.32,4.72928831]
[1752073424772,2.1387,154.38,154.34,4.72928831]
[1752073424969,12.0224168,154.38,154.34,4.72928831]
[1752073425775,12.0224168,154.38,154.36,4.72928831]
[1752073425976,12.0224168,154.38,154.37,6.4771]
[1752073426176,12.0224168,154.38,154.29,12.9609]
[1752073426376,12.0224168,154.38,154.36,4.72928831]
[1752073426576,12.0224168,154.38,154.36,11.20668831]
[1752073427577,12.0224168,154.38,154.36,4.72928831]
[1752073427879,9.00563446,154.45,154.36,4.72928831]
[1752073428072,6.4757,154.41,154.4,4.72928831]
[1752073428271,6.4757,154.41,154.38,6.4767]
[1752073428578,18.4981168,154.41,154.37,6.4768]
[1752073428882,8.4487641,154.4,154.35,4.72928831]
[1752073429178,12.0224168,154.41,154.35,11.20698831]
[1752073429373,8.36042502,154.4,154.35,11.20698831]
[1752073429577,12.0224168,154.41,154.35,11.20698831]
[1752073429777,8.3595178,154.4,154.35,11.20698831]
[1752073429978,12.0224168,154.41,154.35,11.20698831]
[1752073430178,8.3595178,154.4,154.35,11.20698831]
[1752073430374,12.0224168,154.41,154.36,4.72928831]
[1752073430578,8.35863799,154.4,154.36,4.72928831]
[1752073430779,12.0224168,154.41,154.36,4.72928831]
[1752073430980,8.35863799,154.4,154.36,4.72928831]
[1752073431274,6.4768,154.38,154.36,4.72928831]
[1752073431479,12.0224168,154.41,154.35,4.72928831]
[1752073431781,6.4768,154.38,154.35,4.72928831]
[1752073431982,12.0224168,154.41,154.29,4.6069]
[1752073432282,6.4766,154.39,154.35,4.72928831]
[1752073432584,12.0224168,154.41,154.37,4.72928831]
[1752073432776,4.24240897,154.45,154.39,4.72928831]
[1752073432981,12.42628148,154.44,154.39,4.72928831]
[1752073433180,12.42628148,154.43,154.39,4.72928831]
[1752073433377,6.4753,154.42,154.39,4.72928831]
[1752073433577,12.0224168,154.43,154.39,4.72928831]
[1752073433772,6.4752,154.42,154.39,11.20548831]
[1752073433972,12.0224168,154.43,154.39,4.72928831]
[1752073434478,18.4973168,154.43,154.32,4.72928831]
[1752073434679,12.0224168,154.43,154.4,4.72928831]
[1752073435281,25.05414347,154.5,154.42,4.72928831]
[1752073435282,9.00563446,154.5,154.42,4.72928831]
[1752073435483,12.43293134,154.49,154.46,4.72928831]
[1752073435684,12.43293134,154.48,154.44,4.72928831]
[1752073435882,8.36787717,154.47,154.44,4.72928831]
[1752073436084,12.0224168,154.5,154.44,4.72928831]
[1752073436382,12.43056843,154.49,154.44,4.72928831]
[1752073436574,12.43056843,154.48,154.44,4.72928831]
[1752073436776,8.3679901,154.47,154.46,4.72928831]
[1752073436980,18.4951168,154.48,154.46,4.72928831]
[1752073437180,12.0224168,154.48,154.46,4.72928831]
[1752073437982,12.0224168,154.48,154.46,11.20238831]
[1752073438285,2.2679,154.51,154.46,4.72928831]
[1752073438588,6.4724,154.49,154.46,4.72928831]
[1752073438780,8.41787045,154.48,154.46,4.72928831]
[1752073438978,14.2903168,154.51,154.46,4.72928831]
[1752073439176,12.47868697,154.5,154.46,4.72928831]
[1752073439380,8.42009916,154.49,154.46,4.72928831]
[1752073439687,8.42009916,154.48,154.46,4.72928831]
[1752073439888,14.2903168,154.51,154.46,4.72928831]
[1752073440185,12.47733606,154.5,154.46,4.72928831]
[1752073440386,8.42027749,154.49,154.46,4.72928831]
[1752073440689,14.88215461,154.48,154.45,11.20278831]
[1752073440886,4.72928831,154.48,154.38,372.94]
[1752073441089,4.72928831,154.44,154.38,4.72928831]
[1752073441286,8.40747467,154.43,154.38,4.72928831]
[1752073441490,12.0224168,154.43,154.38,4.72928831]
[1752073441887,18.4971168,154.43,154.4,6.4756]
[1752073442088,12.0224168,154.43,154.38,4.72928831]
[1752073442787,18.4970168,154.43,154.4,6.4756]
[1752073443390,12.0224168,154.43,154.38,4.72928831]
[1752073443885,8.29463086,154.42,154.39,6.4762]
[1752073444085,12.0224168,154.43,154.4,4.72928831]
[1752073444590,18.4973168,154.43,154.4,11.20498831]
[1752073444787,12.0224168,154.43,154.4,4.72928831]
[1752073444987,12.0224168,154.43,154.38,4.72928831]
[1752073445183,12.0224168,154.43,154.39,6.4759]
[1752073445490,12.0224168,154.43,154.38,4.72928831]
[1752073445686,12.0224168,154.43,154.38,5.72928831]
[1752073446084,18.4972168,154.43,154.38,5.72928831]
[1752073446590,18.4972168,154.43,154.4,6.4758]
[1752073447298,18.4972168,154.43,154.38,5.72928831]
[1752073447502,6.475,154.42,154.38,5.72928831]
[1752073447797,18.4974168,154.42,154.38,5.72928831]
[1752073447996,18.4974168,154.42,154.38,12.20568831]
[1752073448498,6.4756,154.41,154.38,12.20568831]
[1752073448698,12.0224168,154.42,154.39,6.4763]
[1752073449800,18.4976168,154.42,154.39,6.4763]
[1752073451905,12.0224168,154.42,154.38,11.20578831]
[1752073452409,18.4976168,154.42,154.39,6.4762]
[1752073453405,12.0224168,154.42,154.39,6.4762]
[1752073454109,12.0224168,154.42,154.36,1.0]
[1752073454313,12.0224168,154.42,154.37,4.72928831]
[1752073454506,18.4975168,154.42,154.37,4.72928831]
[1752073454714,12.0224168,154.42,154.37,4.72928831]
[1752073455209,6.4757,154.41,154.38,6.4764]
[1752073455608,12.0224168,154.41,154.37,4.72928831]
[1752073456305,12.0224168,154.41,154.37,11.20618831]
[1752073456515,12.0224168,154.41,154.37,4.72928831]
[1752073456708,12.0224168,154.41,154.36,1.0]
[1752073456912,12.0224168,154.41,154.37,6.4768]
[1752073457109,12.0224168,154.41,154.36,5.72928831]
[1752073457308,18.4980168,154.41,154.38,6.4764]
[1752073457510,12.0224168,154.41,154.38,6.4764]
[1752073458014,18.4980168,154.41,154.38,6.4764]
[1752073459119,12.0224168,154.41,154.38,6.4764]
[1752073459314,12.0224168,154.41,154.36,5.72928831]
[1752073459709,4.3961,154.45,154.38,4.72928831]
[1752073459907,12.21443138,154.44,154.38,4.72928831]
[1752073460114,6.475,154.42,154.38,4.72928831]
[1752073460314,6.475,154.42,154.39,6.4759]
[1752073460315,12.0224168,154.42,154.39,6.4759]
[1752073460617,12.0224168,154.42,154.38,4.72928831]
[1752073460916,4.3961,154.45,154.4,4.72928831]
[1752073461119,16.4185168,154.45,154.4,4.72928831]
[1752073461312,6.4745,154.44,154.4,11.20498831]
[1752073461519,6.4745,154.44,154.4,4.72928831]
[1752073461719,12.0224168,154.44,154.4,4.72928831]
[1752073461919,12.0224168,154.44,154.41,6.4754]
[1752073462322,12.0224168,154.44,154.41,11.20438831]
[1752073462619,12.0224168,154.44,154.41,4.72928831]
[1752073462923,4.5858,154.49,154.43,4.72928831]
[1752073463223,12.22864303,154.48,154.45,4.72928831]
[1752073463523,12.22864303,154.47,154.45,11.20278831]
[1752073463723,23.0806168,154.49,154.45,11.20278831]
[1752073463925,4.04579762,154.48,154.45,11.20278831]
[1752073464221,16.6082168,154.49,154.43,4.72928831]
[1752073464413,4.04704123,154.48,154.43,4.72928831]
[1752073464618,8.22179025,154.47,154.43,4.72928831]
[1752073464811,6.4734,154.46,154.43,4.72928831]
[1752073465013,16.6082168,154.49,154.43,4.72928831]
[1752073465212,12.26335041,154.48,154.43,4.72928831]
[1752073465423,6.4736,154.46,154.43,11.20368831]
[1752073465824,18.4960168,154.46,154.43,11.20368831]
[1752073466022,18.4960168,154.46,154.43,6.4744]
[1752073466523,18.4960168,154.46,154.42,11.20418831]
[1752073466920,18.4960168,154.46,154.43,6.4745]
[1752073467120,18.4960168,154.46,154.42,4.72928831]
[1752073467916,12.0224168,154.46,154.42,4.72928831]
[1752073468117,4.5858,154.49,154.44,4.72928831]
[1752073468425,6.4725,154.48,154.44,4.72928831]
[1752073468619,6.4725,154.48,154.41,1.0]
[1752073468826,18.4949168,154.48,154.45,4.72928831]
[1752073469329,18.4949168,154.48,154.45,11.20268831]
[1752073469716,12.0224168,154.48,154.45,4.72928831]
[1752073470422,12.0224168,154.48,154.45,11.20288831]
[1752073470923,12.0224168,154.48,154.45,4.72928831]
[1752073471422,12.0224168,154.48,154.46,6.4732]
[1752073471625,12.0224168,154.48,154.45,4.72928831]
[1752073471929,12.0224168,154.48,154.46,6.4731]
[1752073473430,18.4950168,154.48,154.45,11.20278831]
[1752073473630,12.0224168,154.48,154.41,1.0]
[1752073474129,4.06871638,154.47,154.41,5.72928831]
[1752073474330,4.5334,154.47,154.41,5.72928831]
[1752073474531,6.4741,154.45,154.41,5.72928831]
[1752073474731,6.4741,154.45,154.41,4.72928831]
[1752073474932,18.4965168,154.45,154.41,4.72928831]
[1752073475832,18.4965168,154.45,154.42,4.72928831]
[1752073476036,6.4743,154.44,154.37,5.4887]
[1752073476233,6.4743,154.44,154.41,4.72928831]
[1752073476437,18.4967168,154.44,154.41,11.20438831]
[1752073476837,12.0224168,154.44,154.31,12.9591]
[1752073477139,12.0224168,154.44,154.38,4.72928831]
[1752073478136,6.4757,154.41,154.38,11.20588831]
[1752073478339,12.0224168,154.44,154.33,4.6222]
[1752073478641,4.72928831,154.41,154.3,372.82]
[1752073478837,4.72928831,154.41,154.34,4.72928831]
[1752073479033,4.07942219,154.4,154.34,4.72928831]
[1752073479238,12.0224168,154.41,154.36,4.72928831]
[1752073479441,8.21064813,154.4,154.36,4.72928831]
[1752073479635,12.0224168,154.41,154.34,4.72928831]
[1752073479837,6.4771,154.37,154.34,4.72928831]
[1752073480037,4.4425,154.4,154.34,4.72928831]
[1752073480341,16.4649168,154.4,154.34,4.72928831]
[1752073481137,16.4649168,154.4,154.3,372.82]
[1752073481138,22.9411168,154.4,154.36,4.72928831]
[1752073481740,6.4763,154.39,154.36,11.20648831]
[1752073481943,16.4649168,154.4,154.36,11.20648831]
[1752073482340,22.9410168,154.4,154.36,11.20648831]
[1752073483347,22.9410168,154.4,154.36,6.4772]
[1752073483643,16.4649168,154.4,154.34,6.478]
[1752073483845,16.4649168,154.4,154.3,372.82]
[1752073483846,4.72928831,154.39,154.32,4.72928831]
[1752073484145,6.4777,154.36,154.32,4.72928831]
[1752073484346,6.4777,154.36,154.32,6.479]
[1752073484646,18.5001168,154.36,154.32,6.479]
[1752073485639,6.478,154.35,154.32,11.20828831]
[1752073486041,18.5004168,154.35,154.32,11.20828831]
[1752073486246,12.0224168,154.35,154.32,11.20828831]
[1752073487045,18.5003168,154.35,154.32,11.20828831]
[1752073487245,18.5003168,154.35,154.32,6.479]
[1752073487545,6.4784,154.34,154.31,11.20858831]
[1752073487839,12.0224168,154.35,154.27,194.3]
[1752073487840,12.0224168,154.35,154.29,4.72928831]
[1752073488441,6.4786,154.34,154.3,6.4797]
[1752073488645,6.4786,154.34,154.29,4.72928831]
[1752073488845,18.5010168,154.34,154.29,4.72928831]
[1752073489847,12.0224168,154.34,154.29,4.72928831]
[1752073490146,12.0224168,154.34,154.3,6.4797]
[1752073490341,18.5010168,154.34,154.3,6.4797]
[1752073490746,12.0224168,154.34,154.3,6.4797]
[1752073490948,12.0224168,154.34,154.29,4.72928831]
[1752073491442,18.5011168,154.34,154.3,6.4797]
[1752073491647,12.0224168,154.34,154.3,6.4797]
[1752073492744,18.5010168,154.34,154.29,4.72928831]
[1752073493141,12.0224168,154.34,154.29,4.72928831]
[1752073493851,12.0224168,154.34,154.31,4.72928831]
[1752073494346,4.4425,154.4,154.33,4.72928831]
[1752073494547,16.4649168,154.4,154.33,4.72928831]
[1752073494743,4.72928831,154.39,154.32,4.72928831]
[1752073495141,16.75170511,154.39,154.32,4.72928831]
[1752073495341,6.4783,154.35,154.32,4.72928831]
[1752073495739,12.0224168,154.35,154.31,6.4795]
[1752073495944,6.4785,154.34,154.31,4.72928831]
[1752073496348,18.5009168,154.34,154.31,4.72928831]
[1752073496543,12.0224168,154.34,154.31,4.72928831]
[1752073497049,12.0224168,154.34,154.32,6.4788]
[1752073497248,12.0224168,154.34,154.33,4.72928831]
[1752073497449,6.4776,154.36,154.33,4.72928831]
[1752073497652,18.5000168,154.36,154.33,4.72928831]
[1752073497850,18.5000168,154.36,154.34,4.72928831]
[1752073498051,6.4779,154.35,154.34,4.72928831]
[1752073498446,18.5003168,154.35,154.32,4.72928831]
[1752073499253,12.0224168,154.35,154.31,4.72928831]
[1752073499654,12.0224168,154.35,154.31,11.20858831]
[1752073500251,6.4786,154.34,154.31,11.20858831]
[1752073500452,12.0224168,154.35,154.31,4.72928831]
[1752073500853,6.4786,154.34,154.31,4.72928831]
[1752073501049,18.5010168,154.34,154.31,4.72928831]
[1752073501654,18.5010168,154.34,154.27,1.0]
[1752073501852,12.0224168,154.34,154.3,4.72928831]
[1752073502158,12.0224168,154.34,154.27,1.0]
[1752073502351,6.4795,154.32,154.28,4.72928831]
[1752073502550,12.0224168,154.34,154.29,6.4802]
[1752073503246,12.0224168,154.34,154.3,4.72928831]
[1752073503753,6.4791,154.33,154.3,4.72928831]
[1752073504054,12.0224168,154.34,154.3,4.72928831]
[1752073504446,18.5010168,154.34,154.3,11.20898831]
[1752073504845,12.0224168,154.34,154.31,4.72928831]
[1752073505252,12.0224168,154.34,154.28,4.72928831]
[1752073505656,6.4798,154.31,154.27,6.4809]
[1752073505856,6.4798,154.31,154.28,4.72928831]
[1752073506059,18.5022168,154.31,154.28,11.21008831]
[1752073506257,6.4801,154.3,154.28,4.77652433]
[1752073506755,18.5025168,154.3,154.28,4.77652433]
[1752073506953,12.0224168,154.3,154.28,4.77652433]
[1752073508848,8.03761305,154.39,154.28,4.77652433]
[1752073509160,2.1624,154.41,154.37,4.72928831]
[1752073509657,2.1624,154.41,154.32,4.72928831]
[1752073509856,6.4767,154.38,154.37,4.77200688]
[1752073510055,6.4767,154.38,154.37,0.04271857]
[1752073510255,2.1624,154.41,154.37,0.04271857]
[1752073510458,2.1624,154.41,154.38,4.72928831]
[1752073510853,6.4752,154.42,154.38,11.20588831]
[1752073511154,2.285,154.44,154.38,4.72928831]
[1752073511454,6.4761,154.4,154.38,4.72928831]
[1752073512550,6.4763,154.39,154.38,4.72928831]
[1752073512858,2.285,154.44,154.38,4.72928831]
[1752073513260,6.4756,154.41,154.38,4.72928831]
[1752073513461,2.285,154.44,154.38,4.72928831]
[1752073513661,6.4757,154.41,154.38,4.72928831]
[1752073514154,6.4759,154.4,154.38,4.72928831]
[1752073514559,2.285,154.44,154.38,4.72928831]
[1752073514861,6.4757,154.41,154.38,4.72928831]
[1752073515062,2.285,154.44,154.38,4.72928831]
[1752073516557,8.13156246,154.43,154.38,4.72928831]
[1752073516761,6.4761,154.4,154.38,4.72928831]
[1752073517565,2.285,154.44,154.38,11.20588831]
[1752073517756,2.285,154.44,154.38,4.72928831]
[1752073518157,2.285,154.44,154.38,11.20588831]
[1752073518653,2.285,154.44,154.38,4.72928831]
[1752073519264,8.14538532,154.43,154.38,4.72928831]
[1752073519463,2.285,154.44,154.38,4.72928831]
[1752073519761,6.4765,154.39,154.37,0.04271857]
[1752073520864,6.4759,154.4,154.37,0.04271857]
[1752073521167,2.1645,154.42,154.38,4.72928831]
[1752073522367,6.4757,154.41,154.38,4.72928831]
[1752073522771,2.1645,154.42,154.38,4.72928831]
[1752073523467,2.1645,154.42,154.37,0.04271857]
[1752073524368,6.4763,154.39,154.37,0.04271857]
[1752073525166,6.476,154.4,154.37,0.04271857]
[1752073525367,2.1645,154.42,154.37,6.51961857]
[1752073525568,2.1645,154.42,154.38,4.72928831]
[1752073526163,2.1645,154.42,154.37,6.51961857]
[1752073526164,2.1645,154.42,154.37,0.04271857]
[1752073526668,6.4765,154.39,154.37,0.04271857]
[1752073527469,6.476,154.4,154.37,0.04271857]
[1752073528369,2.1645,154.42,154.37,6.51971857]
[1752073528669,7.01428831,154.44,154.37,6.51971857]
[1752073528670,2.285,154.44,154.4,4.72928831]
[1752073529069,6.4751,154.42,154.4,4.72928831]
[1752073529274,2.285,154.44,154.37,0.04271857]
[1752073529464,2.285,154.44,154.38,4.72928831]
[1752073529666,2.285,154.44,154.38,11.20568831]
[1752073530170,6.4752,154.42,154.38,11.20568831]
[1752073530570,6.4755,154.41,154.38,11.20568831]
[1752073531272,6.4752,154.42,154.39,6.4762]
[1752073532569,2.285,154.44,154.38,11.20578831]
[1752073533374,2.285,154.44,154.38,4.72928831]
[1752073533676,6.4753,154.42,154.38,4.72928831]
[1752073534070,4.72928831,154.46,154.4,4.72928831]
[1752073534279,8.14231415,154.45,154.4,4.72928831]
[1752073534575,2.1247,154.47,154.4,4.72928831]
[1752073534771,6.4745,154.44,154.4,4.72928831]
[1752073534973,2.1247,154.47,154.42,4.72928831]
[1752073535173,6.4745,154.44,154.42,4.72928831]
[1752073535478,2.1247,154.47,154.4,4.72928831]
[1752073535677,12.20405185,154.46,154.4,11.20488831]
[1752073535976,6.4745,154.44,154.4,11.20488831]
[1752073536177,6.85398831,154.47,154.4,4.72928831]
[1752073536377,16.58600132,154.46,154.4,4.72928831]
[1752073536677,8.1591087,154.45,154.39,6.4762]
[1752073536877,6.85398831,154.47,154.39,6.4762]
[1752073537177,16.52084074,154.46,154.39,6.4762]
[1752073537378,6.85398831,154.47,154.39,6.4762]
[1752073537575,16.52963856,154.46,154.39,6.4762]
[1752073537768,2.1247,154.47,154.42,4.72928831]
[1752073537972,8.16828225,154.46,154.44,4.72928831]
[1752073538174,6.4736,154.46,154.44,4.72928831]
[1752073538376,2.1494,154.49,154.44,4.72928831]
[1752073538582,12.21883726,154.48,154.42,11.20398831]
[1752073538777,6.4738,154.45,154.42,4.72928831]
[1752073538978,4.72928831,154.48,154.4,4.72928831]
[1752073539178,12.21756974,154.47,154.4,4.72928831]
[1752073539381,6.4744,154.44,154.4,11.20488831]
[1752073539679,4.72928831,154.48,154.42,4.72928831]
[1752073539881,6.4736,154.46,154.42,11.20408831]
[1752073540072,6.4736,154.46,154.42,4.72928831]
[1752073540474,6.4731,154.47,154.43,6.4745]
[1752073540781,2.3105,154.52,154.46,4.72928831]
[1752073541082,6.4724,154.49,154.46,4.72928831]
[1752073542281,6.4725,154.48,154.46,4.72928831]
[1752073542582,7.03978831,154.52,154.46,4.72928831]
[1752073542779,12.27289697,154.51,154.46,4.72928831]
[1752073542979,8.21571451,154.5,154.46,4.72928831]
[1752073543274,2.3105,154.52,154.44,4.72928831]
[1752073543476,8.21400426,154.51,154.46,4.72928831]
[1752073543672,2.3105,154.52,154.41,4.4204]
[1752073543875,8.21514783,154.51,154.46,4.72928831]
[1752073544074,2.3105,154.52,154.46,4.72928831]
[1752073544274,6.4727,154.48,154.46,4.72928831]
[1752073544480,7.03978831,154.52,154.44,4.72928831]
[1752073544673,7.03978831,154.52,154.41,4.4204]
[1752073544674,4.72928831,154.5,154.41,4.4204]
[1752073544872,4.72928831,154.5,154.43,4.72928831]
[1752073545074,6.4737,154.46,154.43,4.72928831]
[1752073545281,4.72928831,154.5,154.43,4.72928831]
[1752073545678,4.72928831,154.48,154.41,4.72928831]
[1752073546076,6.99358831,154.48,154.41,4.72928831]
[1752073546281,6.4741,154.45,154.41,4.72928831]
[1752073546882,6.4741,154.45,154.37,372.8]
[1752073546883,2.2643,154.48,154.39,4.72928831]
[1752073547181,4.72928831,154.46,154.39,4.72928831]
[1752073547684,6.93768831,154.46,154.39,4.72928831]
[1752073547879,6.4752,154.42,154.39,4.72928831]
[1752073548282,6.93768831,154.46,154.39,4.72928831]
[1752073548780,6.4752,154.42,154.39,4.72928831]
[1752073548980,6.93768831,154.46,154.39,4.72928831]
[1752073549288,6.4748,154.43,154.39,11.20528831]
[1752073549784,2.2084,154.46,154.37,4.72928831]
[1752073549983,8.21659299,154.45,154.39,4.72928831]
[1752073550185,2.2084,154.46,154.39,4.72928831]
[1752073550484,8.21979212,154.45,154.39,4.72928831]
[1752073550685,2.2084,154.46,154.39,4.72928831]
[1752073550986,21.38405006,154.45,154.39,4.72928831]
[1752073551186,6.4752,154.42,154.39,4.72928831]
[1752073551486,4.72928831,154.45,154.33,4.4256]
[1752073551683,6.4756,154.41,154.37,4.72928831]
[1752073552188,2.2084,154.46,154.39,11.20528831]
[1752073552391,8.23072284,154.45,154.39,11.20528831]
[1752073552585,2.2084,154.46,154.39,11.20528831]
[1752073552785,6.4748,154.43,154.39,11.20528831]
[1752073553089,2.2084,154.46,154.4,4.72928831]
[1752073553288,6.4748,154.43,154.4,4.72928831]
[1752073554389,6.475,154.42,154.4,4.72928831]
[1752073556391,6.4754,154.41,154.4,4.72928831]
[1752073556692,2.2084,154.46,154.4,4.72928831]
[1752073556893,16.56397286,154.45,154.4,4.72928831]
[1752073557092,12.24205934,154.44,154.33,2.2506]
[1752073557391,21.29204502,154.43,154.35,4.72928831]
[1752073557592,21.29204502,154.43,154.28,372.76]
[1752073557593,9.39879866,154.36,154.19,41.80913342]
[1752073557795,21.11577974,154.35,154.1,4.69939933]
[1752073557989,6.4845,154.2,154.14,6.4867]
[1752073558189,568.38,154.29,154.16,4.69939933]
[1752073558386,8.34332849,154.28,154.18,4.69939933]
[1752073558587,13.04272782,154.27,154.18,4.69939933]
[1752073558792,8.34332849,154.26,154.18,4.69939933]
[1752073558994,4.04250791,154.25,154.18,4.69939933]
[1752073559190,6.4832,154.23,154.18,4.69939933]
[1752073559398,4.69939933,154.27,154.18,4.69939933]
[1752073559591,573.07939933,154.29,154.2,4.69939933]
[1752073559792,6.4821,154.25,154.18,2.3022]
[1752073559993,6.4821,154.25,154.2,4.69939933]
[1752073560201,4.69939933,154.25,154.18,2.3022]
[1752073560391,8.87107817,154.24,154.18,2.3022]
[1752073560696,8.87107817,154.23,154.21,4.69939933]
[1752073560898,9.02246334,154.26,154.21,7.05710046]
[1752073561098,8.86979556,154.25,154.18,2.3022]
[1752073561288,12.11054347,154.31,154.25,7.05710046]
[1752073561492,15.50519971,154.3,154.25,13.53890046]
[1752073561696,6.4801,154.3,154.25,13.53890046]
[1752073561893,9.02509971,154.3,154.25,7.05710046]
[1752073562093,9.02509971,154.31,154.24,7.05710046]
[1752073562392,6.4807,154.29,154.24,13.53930046]
[1752073563199,9.02509971,154.34,154.24,7.05710046]
[1752073563498,9.22632201,154.33,154.24,7.05710046]
[1752073563697,6.4803,154.3,154.26,6.4816]
[1752073563889,16.07855065,154.35,154.26,7.05345094]
[1752073564093,9.1336388,154.34,154.26,7.05345094]
[1752073564295,6.4796,154.31,154.26,7.05345094]
[1752073564500,16.07855065,154.35,154.26,7.05345094]
[1752073564696,6.4791,154.33,154.26,7.05345094]
[1752073564896,372.94,154.37,154.28,7.05345094]
[1752073565105,9.13030575,154.36,154.3,7.05345094]
[1752073565292,4.37277012,154.35,154.31,6.4795]
[1752073565497,6.4778,154.36,154.3,7.05345094]
[1752073565702,6.4778,154.36,154.32,7.05345094]
[1752073566607,6.4772,154.37,154.32,7.05345094]
[1752073566897,9.02509971,154.42,154.34,7.05345094]
[1752073567104,6.4765,154.39,154.34,13.53165094]
[1752073567297,9.02509971,154.42,154.35,7.05345094]
[1752073567501,9.11278283,154.41,154.35,7.05345094]
[1752073567804,4.88949053,154.4,154.36,6.4774]
[1752073568103,13.40049971,154.44,154.35,7.05345094]
[1752073568302,6.4761,154.4,154.35,13.53125094]
[1752073568605,13.40049971,154.44,154.35,13.53125094]
[1752073568900,9.22523201,154.43,154.35,13.53125094]
[1752073569108,6.4761,154.4,154.35,13.53125094]
[1752073569406,7.05345094,154.42,154.28,195.82]
[1752073569609,7.05345094,154.4,154.32,7.05345094]
[1752073570895,7.05345094,154.4,154.28,195.82]
[1752073570896,7.05345094,154.38,154.27,4.616]
[1752073571100,7.05345094,154.36,154.27,11.66945094]
[1752073571495,6.4789,154.33,154.28,6.4807]
[1752073571696,9.02509971,154.38,154.27,11.66945094]
[1752073571900,7.05345094,154.36,154.27,11.66945094]
[1752073572102,6.4788,154.33,154.28,6.4807]
[1752073572497,6.4788,154.33,154.27,11.66945094]
[1752073572807,7.05345094,154.36,154.27,11.66945094]
[1752073573006,7.05345094,154.34,154.25,380.05345094]
[1752073573204,13.60625834,154.33,154.25,380.05345094]
[1752073573508,7.05345094,154.34,154.25,380.05345094]
[1752073573702,13.60436967,154.33,154.25,386.53525094]
[1752073573903,7.05345094,154.34,154.25,386.53525094]
[1752073574103,6.4801,154.3,154.25,386.53525094]
[1752073576998,6.4798,154.31,154.26,6.4816]
[1752073577201,11.3647837,154.35,154.25,380.05345094]